Cogmind - Beta 10.1 @@@ ROGUE MODE // 2020.10.18 @ 18:49:05 Player: WayneKnight Result: Destroyed by S-43 Plague with Heavy Machine Gun Performance ------------- Evolutions (8) 4000 Regions Visited (20) 4000 Robots Destroyed (147) 735 Value Destroyed (5121) 5121 Prototype IDs (39) 780 Alien Tech Used (0) 0 Bonus (1071) 1071 TOTAL SCORE: 15707 Bonus ------- High Alert Combat Kills 71 Entered Garrisons 200 Used RIF Installer 500 Aligned with FarCom 300 Cogmind --------- Core Integrity 0/1450 Matter 216/300 Energy 76/100 System Corruption 0% Temperature Cool (0) Movement Core (50) Location -2/Research Parts ------- > --- POWER (2) -------- (None) > --- PROPULSION (6) --- (None) > --- UTILITY (11) ----- Advanced Signal Interpreter > --- WEAPON (4) ------- (None) > --- INVENTORY (4) ---- Micro Fission Core High-capacity Storage Unit Advanced Weight Redist. System Hardened Light Armor Plating Peak State ------------ > --- POWER ------------ Enhanced Nuclear Core Micro Fission Core > --- PROPULSION ------- Nuclear Pulse Thruster Nuclear Pulse Thruster Nuclear Pulse Thruster Nuclear Pulse Thruster Field Propulsion Drive > --- UTILITY ---------- Large Storage Unit Advanced Signal Interpreter Microactuators Propulsion Shielding Hacking Suite System Shield System Shield > --- WEAPON ----------- Greatsword Power Sword > --- INVENTORY -------- Micro Nuclear Core Nuclear Pulse Thruster High-capacity Storage Unit Advanced Weight Redist. System Advanced Actuator Array Hardened Light Armor Plating Enhanced Autogun Coil Gun Railgun Heavy Rocket Launcher [Rating: 72] Favorites ----------- Power Enhanced Nuclear Core Engine Heavy Ion Engine Power Core Enhanced Nuclear Core Propulsion Light Treads Treads Light Treads Leg Aluminum Leg Hover Unit Antigrav System Flight Unit Nuclear Pulse Thruster Utility High-capacity Storage Unit Device Advanced Terrain Scanner Storage High-capacity Storage Unit Processor Advanced Targeting Computer Hackware System Shield Protection Hardened Light Armor Plating Weapon Enhanced Autogun Energy Gun Small Laser Energy Cannon Proton Cannon Ballistic Gun Enhanced Autogun Launcher Advanced EMP Blaster Special Weapon Remote Datajack Impact Weapon Heavy Flail Slashing Weapon Greatsword Build | -11 -10 -10 -9 -9 -9 -8 -8 -8 -7 -7 -7 -7 -7 -6 -6 -6 -5 -4 -3 -2 ------- Run | Scr Mat Min Mat Min Exi Min Mat Sto Fac Gar Fac Low Low Fac Low Low Fac Fac Res Res Slots Evolved 16 | . . . 2 . . . 2 . 2 . . . . 2 . . 2 2 2 2 Power 1 | . . . . . . . . . . . . . . . . . 1 . . . Propulsion 4 | . . . 1 . . . . . 1 . . . . 1 . . . 1 . . Utility 9 | . . . 1 . . . 1 . 1 . . . . 1 . . 1 1 1 2 Weapon 2 | . . . . . . . 1 . . . . . . . . . . . 1 . Parts Attached 135 | . 6 4 19 . 2 . 10 27 16 7 7 . . 19 . . 7 4 6 1 Power 13 | . . 1 3 . . . 1 1 2 1 1 . . . . . 1 2 . . Engine 9 | . . 1 3 . . . 1 1 2 1 . . . . . . . . . . Core 4 | . . . . . . . . . . . 1 . . . . . 1 2 . . Reactor . | . . . . . . . . . . . . . . . . . . . . . Propulsion 42 | . 3 2 4 . . . 4 10 4 1 2 . . 6 . . 3 1 2 . Treads 30 | . 3 2 4 . . . 4 9 4 1 2 . . 1 . . . . . . Leg . | . . . . . . . . . . . . . . . . . . . . . Wheel . | . . . . . . . . . . . . . . . . . . . . . Hover 3 | . . . . . . . . 1 . . . . . . . . 1 . 1 . Flight 9 | . . . . . . . . . . . . . . 5 . . 2 1 1 . Utility 30 | . 1 . 4 . 2 . 2 4 3 1 2 . . 8 . . 3 . . . Device 4 | . . . . . . . . . 1 . . . . 1 . . 2 . . . Storage 13 | . 1 . 4 . 2 . . 4 . . 1 . . 1 . . . . . . Processor 2 | . . . . . . . 1 . . . . . . . . . 1 . . . Hackware 3 | . . . . . . . . . . . . . . 3 . . . . . . Protection 8 | . . . . . . . 1 . 2 1 1 . . 3 . . . . . . Artifact . | . . . . . . . . . . . . . . . . . . . . . Weapon 50 | . 2 1 8 . . . 3 12 7 4 2 . . 5 . . . 1 4 1 Energy Gun 1 | . . . . . . . . 1 . . . . . . . . . . . . Energy Cannon 2 | . . . . . . . . . . 1 . . . . . . . . . 1 Ballistic Gun 33 | . 2 1 7 . . . 3 7 4 2 2 . . 2 . . . . 3 . Ballistic Cannon . | . . . . . . . . . . . . . . . . . . . . . Launcher 7 | . . . 1 . . . . 4 1 1 . . . . . . . . . . Special Weapon 1 | . . . . . . . . . . . . . . 1 . . . . . . Impact Weapon 2 | . . . . . . . . . 2 . . . . . . . . . . . Slashing Weapon 4 | . . . . . . . . . . . . . . 2 . . . 1 1 . Piercing Weapon . | . . . . . . . . . . . . . . . . . . . . . Special Melee Weapon . | . . . . . . . . . . . . . . . . . . . . . Unidentified Prototypes 9 | . . . 1 . . . 2 3 1 . 1 . . . . . 1 . . . Parts Lost 32 | . . 1 3 . . . 3 . . 2 2 . . 2 . . . 5 10 4 Power 4 | . . . 2 . . . . . . . . . . . . . . 1 1 . Propulsion 15 | . . . . . . . 3 . . 1 2 . . 1 . . . 3 4 1 Utility 4 | . . . . . . . . . . 1 . . . . . . . . 1 2 Weapon 9 | . . 1 1 . . . . . . . . . . 1 . . . 1 4 1 Highest Loss Streak 12 | . . 1 2 . . . 2 . . 1 1 . . 2 . . . 5 12 4 Average Slot Usage (%) 93 | . 93 100 97 100 100 100 97 99 99 99 99 92 92 83 80 80 85 82 24 11 Engine 6 | . 14 14 9 11 11 11 9 9 7 7 . . . . . . . . . . Core 2 | . . . . . . . . . . . 6 7 7 6 6 6 11 10 . . Treads 25 | . 27 28 31 33 33 33 27 26 30 29 29 23 23 18 . . . . . . Flight 2 | . . . . . . . . . . . . . . 4 33 33 29 25 3 1 Storage 23 | . 22 28 32 33 33 33 27 27 23 23 23 23 23 18 6 6 5 5 . . Processor 3 | . . . . . . . 8 9 7 7 5 . . . . . 4 5 4 4 Hackware 1 | . . . . . . . . . . . . . . 3 20 20 17 15 10 5 Protection 3 | . . . . . . . . . 4 7 8 15 15 12 6 6 5 5 . . Ballistic Gun 20 | . 27 28 22 22 22 22 24 26 21 20 16 23 23 15 . . . . . . Naked Turns . | . . . . . . . . . . . . . . . . . . . . . Heaviest Build 129 | 11 17 17 54 54 94 94 97 116 124 129 126 120 120 122 30 30 38 40 30 13 Greatest Support 98 | 20 40 40 66 66 66 66 66 62 96 98 98 90 70 90 40 32 41 41 24 11 Greatest Overweight (x) 15 | . . . . . 1 1 1 2 1 1 1 1 1 15 . . . 1 1 4 Average Overweight (x) . | . . . . . . 1 1 1 1 1 1 1 1 1 . . . . . . Largest Inventory Capacity 28 | 6 8 8 20 20 26 26 26 28 28 28 28 28 28 28 10 10 10 10 10 4 Average Capacity 21 | 6 7 8 13 20 24 26 26 27 28 28 28 28 28 26 10 10 10 10 4 4 Most Carried 28 | 6 7 8 16 17 22 22 26 28 28 28 28 28 28 28 10 10 10 10 9 4 Average Carried 20 | 6 6 7 10 16 19 22 24 27 27 27 27 28 28 26 9 10 9 9 4 4 Final Capacity 28 | 6 8 8 20 20 26 26 26 28 28 28 28 28 28 10 10 10 10 10 4 4 Final Carried 28 | 6 7 8 16 17 22 22 26 28 28 28 28 28 28 10 10 10 10 9 4 4 Class Distribution -------------------- 40% | Hauler-Skirmisher 18% | Hauler-Mutant 17% | Mutant 11% | Hauler-Tank 5% | Hacker-Sprinter 3% | Hacker-Mutant Dominant Class ---------------- Mutant | -10/Materials Mutant | -10/Mines Mutant | -9/Materials Hauler-Mutant | -9/Mines Hauler-Mutant | -9/Exiles Hauler-Mutant | -8/Mines Hauler-Skirmisher | -8/Materials Hauler-Skirmisher | -8/Storage Hauler-Skirmisher | -7/Factory Hauler-Skirmisher | -7/Garrison Hauler-Skirmisher | -7/Factory Hauler-Tank | -7/Lower Caves Hauler-Tank | -7/Lower Caves Hauler-Tank | -6/Factory Hacker-Sprinter | -6/Lower Caves Hacker-Sprinter | -6/Lower Caves Hacker-Sprinter | -5/Factory Hacker-Sprinter | -4/Factory Hacker-Mutant | -3/Research Hacker-Mutant | -2/Research Resources | -11 -10 -10 -9 -9 -9 -8 -8 -8 -7 -7 -7 -7 -7 -6 -6 -6 -5 -4 -3 -2 ----------- Run | Scr Mat Min Mat Min Exi Min Mat Sto Fac Gar Fac Low Low Fac Low Low Fac Fac Res Res Matter Collected 4026 | 172 224 158 660 49 20 57 223 907 590 302 191 101 . 275 20 . . 43 34 . Remotely . | . . . . . . . . . . . . . . . . . . . . . Salvage Created 5941 | . 330 254 1235 77 . 121 350 1373 916 379 428 . . 200 107 . . 43 102 26 Parts 352 | . 34 21 69 12 . 6 21 74 53 21 25 . . 5 5 . . 1 4 1 Haulers Intercepted 5 | . . . 1 . . . 1 3 . . . . . . . . . . . . Recyclers Shooed 5 | . . . 3 . . . 1 1 . . . . . . . . . . . . Parts Field Recycled . | . . . . . . . . . . . . . . . . . . . . . Retrieved Matter . | . . . . . . . . . . . . . . . . . . . . . Parts Self-Destructed 14 | . . . . . . . . . . . . 7 . . 7 . . . . . Prevented . | . . . . . . . . . . . . . . . . . . . . . Kills | -11 -10 -10 -9 -9 -9 -8 -8 -8 -7 -7 -7 -7 -7 -6 -6 -6 -5 -4 -3 -2 ------- Run | Scr Mat Min Mat Min Exi Min Mat Sto Fac Gar Fac Low Low Fac Low Low Fac Fac Res Res Combat Hostiles Destroyed 125 | . 14 9 21 4 . 3 6 22 19 11 7 . . 3 2 . . . 3 1 Melee 2 | . . . . . . . . . . . . . . . 2 . . . . . Guns 110 | . 14 9 21 4 . 3 6 22 16 6 3 . . 3 . . . . 3 . Cannons 5 | . . . . . . . . . . . 4 . . . . . . . . 1 AOE 8 | . . . . . . . . . 3 5 . . . . . . . . . . Classes Destroyed 14 | . 3 1 5 1 . . 1 2 1 . . . . . . . . . . . Worker 1 | . . . . . . . . 1 . . . . . . . . . . . . Builder 4 | . . . 1 . . . 1 2 . . . . . . . . . . . . Tunneler 1 | . . . . 1 . . . . . . . . . . . . . . . . Hauler 5 | . . . 1 . . . 1 3 . . . . . . . . . . . . Recycler 3 | . . . 2 . . 1 . . . . . . . . . . . . . . Operator 3 | . . . 2 . . . . . . . 1 . . . . . . . . . Watcher 5 | . 1 . 1 . . . 2 . . . . . . . . . . 1 . . Swarmer 34 | . 9 6 . 4 . 3 3 . 3 . . . . . 2 . . . 3 1 Grunt 50 | . 5 2 14 . . . . 14 6 5 2 . . 2 . . . . . . Brawler 3 | . . . . . . . . 2 . . . . . 1 . . . . . . Duelist 1 | . . . 1 . . . . . . . . . . . . . . . . . Sentry 26 | . . 1 6 . . . 2 5 6 4 2 . . . . . . . . . Hunter 6 | . . . . . . . 1 1 1 1 2 . . . . . . . . . Programmer 5 | . . . . . . . . . 3 1 1 . . . . . . . . . Best Kill Streak 7 | . 3 6 5 2 . 4 4 5 4 7 3 . . 3 2 . . 1 3 1 Combat Bots Only 7 | . 3 6 5 2 . 3 3 4 4 7 3 . . 3 2 . . . 3 1 Max Kills in Single Turn 2 | . 1 2 2 1 . 1 2 2 2 2 1 . . 1 1 . . 1 1 1 Gunslinging 1 | . . 1 . . . . . . . . . . . . . . . . . . Exploded 2 | . . . . . . . . . 2 2 . . . . . . . . . . Melee 1 | . . . . . . . . . . . . . . . 1 . . . . . Uniques/NPCs Destroyed . | . . . . . . . . . . . . . . . . . . . . . Combat | -11 -10 -10 -9 -9 -9 -8 -8 -8 -7 -7 -7 -7 -7 -6 -6 -6 -5 -4 -3 -2 -------- Run | Scr Mat Min Mat Min Exi Min Mat Sto Fac Gar Fac Low Low Fac Low Low Fac Fac Res Res Damage Taken 9409 | . 256 461 1010 78 . 78 256 825 777 844 531 14 . 222 153 . 22 391 1822 1669 Core 3039 | . 12 78 175 8 . 19 37 68 73 47 . . . 19 15 . 22 82 931 1453 Absorbed by Shields . | . . . . . . . . . . . . . . . . . . . . . Core Remaining (%) 76 | 100 . 64 . . . 49 . 80 . . . . 82 . . 96 97 92 28 . Volleys Fired 339 | . 28 21 72 7 . 6 17 67 47 26 18 5 . 12 . . . . 11 2 Largest 3 | . 2 2 2 2 . 2 3 3 3 3 3 3 . 3 . . . . 3 1 Hottest 128 | . 60 40 48 48 . 48 75 86 75 78 128 75 . 80 . . . . 90 110 Shots Fired 834 | . 56 41 143 14 . 12 44 195 135 66 52 15 . 30 . . . . 29 2 Gun 804 | . 56 41 142 14 . 12 44 191 133 60 39 15 . 28 . . . . 29 . Cannon 15 | . . . . . . . . . . . 13 . . . . . . . . 2 Launcher 13 | . . . 1 . . . . 4 2 6 . . . . . . . . . . Special 2 | . . . . . . . . . . . . . . 2 . . . . . . Kinetic 799 | . 51 41 142 14 . 12 44 191 133 60 39 15 . 28 . . . . 29 . Thermal 7 | . 5 . . . . . . . . . . . . . . . . . . 2 Explosive 11 | . . . 1 . . . . 2 2 6 . . . . . . . . . . Electromagnetic 15 | . . . . . . . . 2 . . 13 . . . . . . . . . Robot Hit Streak 69 | . 12 10 25 3 . 2 11 69 29 25 14 3 . 7 . . . . 5 3 Robot Miss Streak 4 | . 3 3 2 2 . 1 2 2 2 1 3 4 . 2 . . . . 2 . Penetration Max . | . . . . . . . . . . . . . . . . . . . . . Secondary Targets 8 | . . 3 . 1 . . . 1 . 1 . . . 1 . . . . 1 . Max Gunslinging Chain 1 | . . 1 . 1 . . . 1 . 1 . . . 1 . . . . 1 . Shots Hit Robots 625 | . 37 29 108 7 . 7 34 155 103 51 36 5 . 21 9 . . 1 20 2 Core Hits 296 | . 19 15 44 5 . 4 17 56 46 41 24 . . 10 3 . . 1 6 5 Critical Hits 11 | . 1 1 3 . . 1 . . . . 1 . . 1 1 . . . 1 1 Critical Kills 5 | . 1 1 . . . . . . . . . . . . 1 . . . 1 1 Critical Parts Destroyed 5 | . . . 3 . . 1 . . . . . . . 1 . . . . . . Melee Attacks 49 | . . . . . . . . . 6 . . . . . 10 . 4 25 4 . Impact 6 | . . . . . . . . . 6 . . . . . . . . . . . Slashing 43 | . . . . . . . . . . . . . . . 10 . 4 25 4 . Piercing . | . . . . . . . . . . . . . . . . . . . . . Sneak Attacks 1 | . . . . . . . . . . . . . . . 1 . . . . . Combat Hostiles 1 | . . . . . . . . . . . . . . . 1 . . . . . Follow-up Attacks . | . . . . . . . . . . . . . . . . . . . . . Damage Inflicted 12368 | . 412 365 1808 130 . 95 710 2567 2056 1542 830 50 . 410 784 . . 78 409 122 Guns 9679 | . 404 361 1733 111 . 78 600 2446 1651 908 518 50 . 410 . . . . 409 . Cannons 391 | . . . . . . . . . . . 312 . . . . . . . . 79 Explosions 1021 | . . . . . . . . 24 363 634 . . . . . . . . . . Melee 879 | . . . . . . . . . 17 . . . . . 784 . . 78 . . Ramming 398 | . 8 4 75 19 . 17 110 97 25 . . . . . . . . . . 43 Kinetic 9624 | . 349 361 1733 111 . 78 600 2446 1651 908 518 50 . 410 . . . . 409 . Thermal 134 | . 55 . . . . . . . . . . . . . . . . . . 79 Explosive 997 | . . . . . . . . . 363 634 . . . . . . . . . . Electromagnetic 336 | . . . . . . . . 24 . . 312 . . . . . . . . . Impact 17 | . . . . . . . . . 17 . . . . . . . . . . . Slashing 862 | . . . . . . . . . . . . . . . 784 . . 78 . . Piercing . | . . . . . . . . . . . . . . . . . . . . . Highest Corruption 2 | . . . . . . . . . . . 2 2 2 . . . . . 2 . Average Corruption 1 | . . . . . . . . . . . 1 2 2 . . . . . 2 . Corruption Purged . | . . . . . . . . . . . . . . . . . . . . . Effects 17 | . . . . . . . . . . . 8 4 5 . . . . . . . Message Errors 10 | . . . . . . . . . . . 4 2 4 . . . . . . . Heat Flow Errors 1 | . . . . . . . . . . . . . 1 . . . . . . . Energy Discharges 2 | . . . . . . . . . . . . 2 . . . . . . . . Data Loss (minor) 3 | . . . . . . . . . . . 3 . . . . . . . . . Targeting Errors 1 | . . . . . . . . . . . 1 . . . . . . . . . Overload Shots . | . . . . . . . . . . . . . . . . . . . . . Overflow Damage 159 | . . . . . . . 3 13 3 13 7 . . . 120 . . . . . Projectiles 7 | . . . . . . . . . . . 7 . . . . . . . . . Explosions 16 | . . . . . . . . . 3 13 . . . . . . . . . . Melee 136 | . . . . . . . 3 13 . . . . . . 120 . . . . . Knockbacks 4 | . . . 1 . . . 1 1 1 . . . . . . . . . . . Impact 4 | . . . 1 . . . 1 1 1 . . . . . . . . . . . Kinetic . | . . . . . . . . . . . . . . . . . . . . . Secondary . | . . . . . . . . . . . . . . . . . . . . . Self-Inflicted Damage 252 | . . . . . . . . 66 . . 168 . . . . . . . . 18 Shots 5 | . . . . . . . . 3 . . 2 . . . . . . . . . Rammed 41 | . 1 2 11 1 . 2 6 4 3 . . . . . . . . . . 11 Targets Rammed 46 | . 2 2 13 1 . 3 6 5 3 . . . . . . . . . . 11 Kicked . | . . . . . . . . . . . . . . . . . . . . . Crushed 5 | . 1 . 2 . . 1 . 1 . . . . . . . . . . . . Highest Temperature 318 | . 64 4 22 4 . 8 45 122 235 318 281 160 82 297 1 . 80 21 136 24 Average Temperature 51 | . 41 2 5 3 . 3 21 37 69 102 100 81 44 122 1 . 30 4 70 15 Received Heat Transfer 1644 | . 66 96 459 . . . 27 306 189 240 81 . . 81 . . . . 90 9 Effects 2 | . . . . . . . . . . . 1 . . 1 . . . . . . Energy Bleed 1 | . . . . . . . . . . . . . . 1 . . . . . . Interference 1 | . . . . . . . . . . . 1 . . . . . . . . . Siege Activations . | . . . . . . . . . . . . . . . . . . . . . Robots Corrupted . | . . . . . . . . . . . . . . . . . . . . . Combat Hostiles . | . . . . . . . . . . . . . . . . . . . . . Parts Fried 2 | . . . . . . . . . . . 2 . . . . . . . . . Impact Corruptions 3 | . . . . . . . 1 2 . . . . . . . . . . . . Robots Melted . | . . . . . . . . . . . . . . . . . . . . . Combat Hostiles . | . . . . . . . . . . . . . . . . . . . . . Parts Melted 1 | . . . . . . . . . . . . . . . . . . . . 1 Heat Transferred 175 | . 125 . . . . . . . . . . . . . . . . . . 50 Parts Sabotaged . | . . . . . . . . . . . . . . . . . . . . . Parts Stolen 1 | . . . . . . . . . . . . 1 . . . . . . . . Parts Stripped . | . . . . . . . . . . . . . . . . . . . . . Power Chain Reactions . | . . . . . . . . . . . . . . . . . . . . . Missiles Intercepted . | . . . . . . . . . . . . . . . . . . . . . Alert | -11 -10 -10 -9 -9 -9 -8 -8 -8 -7 -7 -7 -7 -7 -6 -6 -6 -5 -4 -3 -2 ------- Run | Scr Mat Min Mat Min Exi Min Mat Sto Fac Gar Fac Low Low Fac Low Low Fac Fac Res Res Peak Influence 487 | . 223 231 464 224 . 75 167 249 285 487 255 . . 83 . . 75 161 155 87 Initial 255 | . . 36 . 129 . . 29 47 91 99 255 . . . . . 22 36 57 87 Average 113 | . 74 109 174 169 . 58 67 111 86 349 127 . . 14 . . 55 108 103 76 Maximum Alert Level 2 | . 1 1 2 1 . . . 1 1 2 1 . . . . . . . . . Low Security (%) 80 | 100 90 77 53 33 . 100 100 86 90 28 73 . . 100 . . 100 100 100 100 Level 1 15 | . 9 22 42 66 . . . 13 9 9 26 . . . . . . . . . Level 2 3 | . . . 3 . . . . . . 61 . . . . . . . . . . Level 3 . | . . . . . . . . . . . . . . . . . . . . . Level 4 . | . . . . . . . . . . . . . . . . . . . . . Level 5 . | . . . . . . . . . . . . . . . . . . . . . High Security . | . . . . . . . . . . . . . . . . . . . . . Max Security . | . . . . . . . . . . . . . . . . . . . . . Squads Dispatched 22 | . 2 . 2 . . . . 3 4 . 5 . . . . . . 1 4 1 Investigation 3 | . . . . . . . . 1 . . 1 . . . . . . . . 1 Extermination 6 | . . . . . . . . . 3 . 1 . . . . . . 1 1 . Reinforcement 10 | . 2 . 2 . . . . 2 1 . 3 . . . . . . . . . Assault . | . . . . . . . . . . . . . . . . . . . . . Garrison 3 | . . . . . . . . . . . . . . . . . . . 3 . Intercept . | . . . . . . . . . . . . . . . . . . . . . Construction Impeded 2 | . . . . . . . . 2 . . . . . . . . . . . . Haulers Reinforced . | . . . . . . . . . . . . . . . . . . . . . Stealth | -11 -10 -10 -9 -9 -9 -8 -8 -8 -7 -7 -7 -7 -7 -6 -6 -6 -5 -4 -3 -2 --------- Run | Scr Mat Min Mat Min Exi Min Mat Sto Fac Gar Fac Low Low Fac Low Low Fac Fac Res Res Distress Signals 11 | . 2 . 2 . . . 2 3 . . 1 . . . . . . . . 1 Communications Jammed . | . . . . . . . . . . . . . . . . . . . . . Distress Signals . | . . . . . . . . . . . . . . . . . . . . . Times Spotted 231 | . 26 10 34 5 . 3 17 27 26 11 11 1 . 5 17 . 1 6 18 13 Peak Tracking Total 11 | . 3 6 6 4 . 3 3 5 6 5 3 1 . 4 3 . 1 3 9 11 Tactical Retreats 32 | . 2 . 5 1 . . 2 2 5 . . . . 3 6 . . . 4 2 Traps | -11 -10 -10 -9 -9 -9 -8 -8 -8 -7 -7 -7 -7 -7 -6 -6 -6 -5 -4 -3 -2 ------- Run | Scr Mat Min Mat Min Exi Min Mat Sto Fac Gar Fac Low Low Fac Low Low Fac Fac Res Res Traps Triggered 10 | . . . . . . . . 2 1 1 2 . . . . . . . 3 1 Indirectly . | . . . . . . . . . . . . . . . . . . . . . Trap Hack Attempts . | . . . . . . . . . . . . . . . . . . . . . Triggered . | . . . . . . . . . . . . . . . . . . . . . Disarmed . | . . . . . . . . . . . . . . . . . . . . . Reprogrammed . | . . . . . . . . . . . . . . . . . . . . . Reused . | . . . . . . . . . . . . . . . . . . . . . Traps Extracted . | . . . . . . . . . . . . . . . . . . . . . Installed . | . . . . . . . . . . . . . . . . . . . . . Triggered 1 | . . . . . . . . . . . . . 1 . . . . . . . Machines | -11 -10 -10 -9 -9 -9 -8 -8 -8 -7 -7 -7 -7 -7 -6 -6 -6 -5 -4 -3 -2 ---------- Run | Scr Mat Min Mat Min Exi Min Mat Sto Fac Gar Fac Low Low Fac Low Low Fac Fac Res Res Machines Disabled 12 | . . . . . . . 1 5 . 1 5 . . . . . . . . . Max in Single Turn 4 | . . . . . . . 1 2 . 1 4 . . . . . . . . . Garrison Access 5 | . . . . . . . . . . . 1 . . 1 . . 2 . . 1 Machines Sabotaged . | . . . . . . . . . . . . . . . . . . . . . Garrisons Compromised . | . . . . . . . . . . . . . . . . . . . . . Overloaded Fab Kills . | . . . . . . . . . . . . . . . . . . . . . Fab Network Shutdowns . | . . . . . . . . . . . . . . . . . . . . . Hacking | -11 -10 -10 -9 -9 -9 -8 -8 -8 -7 -7 -7 -7 -7 -6 -6 -6 -5 -4 -3 -2 --------- Run | Scr Mat Min Mat Min Exi Min Mat Sto Fac Gar Fac Low Low Fac Low Low Fac Fac Res Res Machines Accessed 44 | . 6 . 4 . 2 . 4 6 5 . 4 . . 2 1 . 2 5 1 2 Terminals 26 | . 6 . 3 . . . 2 4 3 . 3 . . 1 . . . 2 1 1 Fabricators 1 | . . . . . . . . . 1 . . . . . . . . . . . Repair Stations 1 | . . . . . . . . 1 . . . . . . . . . . . . Recycling Units 5 | . . . 1 . . . 1 1 . . . . . . . . . 2 . . Scanalyzers 2 | . . . . . . . 1 . . . . . . . . . . 1 . . Garrison Access 6 | . . . . . . . . . 1 . 1 . . 1 . . 2 . . 1 Total Hacks 129 | . 20 . 13 . 3 . 13 14 15 . 7 . . 4 1 . 2 31 3 3 Successful 78 | . 12 . 8 . 3 . 9 5 9 . 2 . . 3 1 . 2 21 1 2 Failed 50 | . 7 . 5 . . . 4 9 6 . 5 . . 1 . . . 10 2 1 Catastrophic 5 | . . . . . . . . 2 1 . . . . 1 . . . . 1 . Database Lockouts 1 | . 1 . . . . . . . . . . . . . . . . . . . Manual 56 | . 15 . 4 . 1 . 3 6 6 . 4 . . 1 . . . 11 3 2 Terminals 87 | . 20 . 12 . . . 5 10 11 . 6 . . 3 . . . 15 3 2 Fabricators 2 | . . . . . . . . . 2 . . . . . . . . . . . Repair Stations 3 | . . . . . . . . 3 . . . . . . . . . . . . Recycling Units 9 | . . . 1 . . . 3 1 . . . . . . . . . 4 . . Scanalyzers 17 | . . . . . . . 5 . . . . . . . . . . 12 . . Garrison Access 7 | . . . . . . . . . 2 . 1 . . 1 . . 2 . . 1 Terminal Hacks 34 | . 8 . 4 . 3 . 3 2 6 . . . . 1 1 . . 5 1 . Record 2 | . . . . . 2 . . . . . . . . . . . . . . . Part Schematic 1 | . . . . . . . . . 1 . . . . . . . . . . . Robot Analysis 5 | . 3 . . . . . . . . . . . . . . . . 2 . . Prototype ID Bank 5 | . 3 . . . . . . 1 1 . . . . . . . . . . . Open Door 1 | . . . . . . . . . . . . . . . 1 . . . . . Branch Access Points 1 | . . . . . . . 1 . . . . . . . . . . . . . Emergency Access Points 1 | . . . . . . . . . . . . . . . . . . 1 . . Alert Level 3 | . . . 1 . . . 1 . 1 . . . . . . . . . . . Unreport Threat 4 | . 1 . 1 . . . . 1 1 . . . . . . . . . . . Locate Traps 9 | . 1 . 2 . . . 1 . 2 . . . . 1 . . . 2 . . Recall Extermination 1 | . . . . . . . . . . . . . . . . . . . 1 . EX-Prototype ID Bank 1 | . . . . . 1 . . . . . . . . . . . . . . . Fabricator Hacks . | . . . . . . . . . . . . . . . . . . . . . Repair Station Hacks 2 | . . . . . . . . 2 . . . . . . . . . . . . Scan Component 1 | . . . . . . . . 1 . . . . . . . . . . . . Repair 1 | . . . . . . . . 1 . . . . . . . . . . . . Recycling Unit Hacks 6 | . . . 1 . . . 2 1 . . . . . . . . . 2 . . Report Inventory 5 | . . . 1 . . . 1 1 . . . . . . . . . 2 . . Retrieve Components 1 | . . . . . . . 1 . . . . . . . . . . . . . Scanalyzer 16 | . . . . . . . 4 . . . . . . . . . . 12 . . Insert Component 8 | . . . . . . . 2 . . . . . . . . . . 6 . . Analyze 8 | . . . . . . . 2 . . . . . . . . . . 6 . . Garrison Access Hacks 6 | . . . . . . . . . 1 . 1 . . 1 . . 2 . . 1 Unlock Access 1 | . . . . . . . . . 1 . . . . . . . . . . . Seal Access 5 | . . . . . . . . . . . 1 . . 1 . . 2 . . 1 Unauthorized Hacks 14 | . 4 . 3 . . . . . 2 . 1 . . 1 . . . 2 . 1 Terminals 14 | . 4 . 3 . . . . . 2 . 1 . . 1 . . . 2 . 1 Track 2 | . 1 . 1 . . . . . . . . . . . . . . . . . Botnet 11 | . 3 . 2 . . . . . 2 . 1 . . 1 . . . 2 . . Detonate 1 | . . . . . . . . . . . . . . . . . . . . 1 Fabricators . | . . . . . . . . . . . . . . . . . . . . . Repair Stations . | . . . . . . . . . . . . . . . . . . . . . Recycling Units . | . . . . . . . . . . . . . . . . . . . . . Scanalyzers . | . . . . . . . . . . . . . . . . . . . . . Garrison Access . | . . . . . . . . . . . . . . . . . . . . . Data Cores Recovered . | . . . . . . . . . . . . . . . . . . . . . Used . | . . . . . . . . . . . . . . . . . . . . . Hacking Detections 31 | . 6 . 4 . . . 4 5 5 . 3 . . 1 . . . 2 1 . Full Trace Events 2 | . . . . . . . . 1 . . 1 . . . . . . . . . Feedback Events . | . . . . . . . . . . . . . . . . . . . . . Feedback Blocked . | . . . . . . . . . . . . . . . . . . . . . Robot Schematics Acquired . | . . . . . . . . . . . . . . . . . . . . . Robots Built . | . . . . . . . . . . . . . . . . . . . . . Matter . | . . . . . . . . . . . . . . . . . . . . . Time . | . . . . . . . . . . . . . . . . . . . . . Total Robot Build Rating . | . . . . . . . . . . . . . . . . . . . . . Part Schematics Acquired 9 | . . . . . . . 2 . 1 . . . . . . . . 6 . . Parts Built . | . . . . . . . . . . . . . . . . . . . . . Matter . | . . . . . . . . . . . . . . . . . . . . . Time . | . . . . . . . . . . . . . . . . . . . . . Total Part Build Rating . | . . . . . . . . . . . . . . . . . . . . . Parts Repaired 1 | . . . . . . . . 1 . . . . . . . . . . . . Time 26 | . . . . . . . . 26 . . . . . . . . . . . . Parts Recycled . | . . . . . . . . . . . . . . . . . . . . . Recycled Matter . | . . . . . . . . . . . . . . . . . . . . . Retrieved Matter . | . . . . . . . . . . . . . . . . . . . . . Retrieved Components 2 | . . . . . . . 2 . . . . . . . . . . . . . Parts Scanalyzed 8 | . . . . . . . 2 . . . . . . . . . . 6 . . Part Schematics Acquired 8 | . . . . . . . 2 . . . . . . . . . . 6 . . Parts Damaged . | . . . . . . . . . . . . . . . . . . . . . Bothacking | -11 -10 -10 -9 -9 -9 -8 -8 -8 -7 -7 -7 -7 -7 -6 -6 -6 -5 -4 -3 -2 ------------ Run | Scr Mat Min Mat Min Exi Min Mat Sto Fac Gar Fac Low Low Fac Low Low Fac Fac Res Res Used RIF Installer 1 | . . . . . . . . . . 1 . . . . . . . . . . Robots Hacked 1 | . . . . . . . . . . . . . . 1 . . . . . . Non-combat 1 | . . . . . . . . . . . . . . 1 . . . . . . Combat . | . . . . . . . . . . . . . . . . . . . . . Robot Hacks Applied 2 | . . . . . . . . . . . . . . 2 . . . . . . no_distress 1 | . . . . . . . . . . . . . . 1 . . . . . . ignore_repairs 1 | . . . . . . . . . . . . . . 1 . . . . . . Relay Couplers Released . | . . . . . . . . . . . . . . . . . . . . . Robots Rewired . | . . . . . . . . . . . . . . . . . . . . . Allies Hacked . | . . . . . . . . . . . . . . . . . . . . . Hacks Repelled . | . . . . . . . . . . . . . . . . . . . . . Allies | -11 -10 -10 -9 -9 -9 -8 -8 -8 -7 -7 -7 -7 -7 -6 -6 -6 -5 -4 -3 -2 -------- Run | Scr Mat Min Mat Min Exi Min Mat Sto Fac Gar Fac Low Low Fac Low Low Fac Fac Res Res Total Allies . | . . . . . . . . . . . . . . . . . . . . . Largest Group . | . . . . . . . . . . . . . . . . . . . . . Highest-Rated Group . | . . . . . . . . . . . . . . . . . . . . . Highest-Rated Ally . | . . . . . . . . . . . . . . . . . . . . . Total Orders . | . . . . . . . . . . . . . . . . . . . . . Ally Attacks . | . . . . . . . . . . . . . . . . . . . . . Total Damage . | . . . . . . . . . . . . . . . . . . . . . Kills . | . . . . . . . . . . . . . . . . . . . . . Allies Corrupted . | . . . . . . . . . . . . . . . . . . . . . Allies Melted . | . . . . . . . . . . . . . . . . . . . . . Intel | -11 -10 -10 -9 -9 -9 -8 -8 -8 -7 -7 -7 -7 -7 -6 -6 -6 -5 -4 -3 -2 ------- Run | Scr Mat Min Mat Min Exi Min Mat Sto Fac Gar Fac Low Low Fac Low Low Fac Fac Res Res Robot Analysis Total 5 | . 3 . . . . . . . . . . . . . . . . 2 . . Derelict Logs Recovered 5 | . . 2 . 1 . . . . . . . 1 . . . 1 . . . . Drone Launches . | . . . . . . . . . . . . . . . . . . . . . Drone Recoveries . | . . . . . . . . . . . . . . . . . . . . . Exploration | -11 -10 -10 -9 -9 -9 -8 -8 -8 -7 -7 -7 -7 -7 -6 -6 -6 -5 -4 -3 -2 ------------- Run | Scr Mat Min Mat Min Exi Min Mat Sto Fac Gar Fac Low Low Fac Low Low Fac Fac Res Res Turns Passed 15469 | 2 1364 907 1088 516 684 131 1128 1998 1989 663 1591 776 250 892 352 111 160 391 379 97 Spaces Moved 9368 | 2 775 520 527 339 422 67 523 709 952 314 478 431 141 481 711 357 393 540 514 172 Core 250 | . . . . . . . . . . . . . . . . . . . 159 91 Treads 6590 | . 764 520 527 339 422 67 523 709 952 314 478 431 141 403 . . . . . . Legs 13 | 2 11 . . . . . . . . . . . . . . . . . . . Wheels . | . . . . . . . . . . . . . . . . . . . . . Hover . | . . . . . . . . . . . . . . . . . . . . . Flight 2515 | . . . . . . . . . . . . . . 78 711 357 393 540 355 81 Fastest Speed 28 | 120 120 160 145 145 145 165 165 180 181 178 178 178 178 28 28 31 28 28 40 40 Average Speed 130 | 120 159 160 150 145 160 165 176 183 183 180 179 178 178 166 30 31 28 30 43 46 Slowest Speed 1260 | 120 160 160 160 145 165 165 180 210 185 185 181 181 178 1260 31 31 28 114 114 250 Overloaded Moves . | . . . . . . . . . . . . . . . . . . . . . Propulsion Burnouts . | . . . . . . . . . . . . . . . . . . . . . Robots Hopped 5 | . . . . . . . . . . . . . . . . . 1 . 4 . Cave-ins Triggered . | . . . . . . . . . . . . . . . . . . . . . Exploration Rate (%) 42 | 3 99 95 56 88 79 15 32 65 21 38 14 60 25 12 84 39 14 18 24 7 Regions Visited 20 Branch Regions 9 Pre-discovered Areas 6 | . . 1 . 1 1 . . 1 . . . 1 . . . 1 . . . . Known Exits Taken 6 | . . . 1 . . . 1 . 1 . . . . . . . 1 1 1 . Unknown Exits Taken 13 | 1 1 1 . 1 1 1 . 1 . . 1 1 1 1 1 1 . . . . Scrap Searched 3 | . . 1 . 1 . . . . . . . . . . 1 . . . . . Spaces Dug 32 | . . . . . . . . . 3 . . . . . . . 4 21 4 . Terrain Destroyed 123 | . . . 10 . . . . 11 22 15 36 . . . . . 4 21 4 . Melee 32 | . . . . . . . . . 3 . . . . . . . 4 21 4 . Projectile . | . . . . . . . . . . . . . . . . . . . . . AOE 91 | . . . 10 . . . . 11 19 15 36 . . . . . . . . . Terrain Rammed . | . . . . . . . . . . . . . . . . . . . . . Walls Destroyed . | . . . . . . . . . . . . . . . . . . . . . Machines Disabled . | . . . . . . . . . . . . . . . . . . . . . Actions | -11 -10 -10 -9 -9 -9 -8 -8 -8 -7 -7 -7 -7 -7 -6 -6 -6 -5 -4 -3 -2 --------- Run | Scr Mat Min Mat Min Exi Min Mat Sto Fac Gar Fac Low Low Fac Low Low Fac Fac Res Res Total 11981 | 1 847 556 692 350 426 75 697 1326 1136 382 1180 435 140 561 823 356 434 739 639 186 Wait 1868 | . 30 . 41 3 . . 116 493 83 30 671 . . 19 101 . 26 166 89 . Move 9337 | 1 774 519 526 338 421 66 522 708 951 312 477 430 140 480 710 356 390 539 505 172 Hop 5 | . . . . . . . . . . . . . . . . . 1 . 4 . Pick Up 68 | . 2 4 10 1 3 . 14 5 12 1 3 . . 8 . . 2 3 . . Fast Attach 38 | . 2 1 3 . . . 3 4 4 2 2 . . 11 . . 3 . 2 1 Attach 27 | . . 1 3 . . . 4 1 1 2 2 . . 4 . . 2 3 4 . Detach 15 | . 1 1 . . . . 2 . . 2 1 . . 4 1 . 1 1 1 . Swap 70 | . 4 2 13 . 2 . 3 22 11 3 3 . . 4 . . 2 1 . . Drop 102 | . 4 5 11 . . . 10 20 18 2 3 . . 19 1 . 3 3 3 . Fire 339 | . 28 21 72 7 . 6 17 67 47 26 18 5 . 12 . . . . 11 2 Melee 47 | . . . . . . . . . 6 . . . . . 10 . 4 23 4 . Ram 11 | . . . . . . . . . . . . . . . . . . . . 11 Kick . | . . . . . . . . . . . . . . . . . . . . . Crush 35 | . 2 2 13 1 . 3 6 5 3 . . . . . . . . . . . Escape Stasis 18 | . . . . . . . . . . 2 . . . . . . . . 16 . Rewire 1 | . . . . . . . . 1 . . . . . . . . . . . . Trap . | . . . . . . . . . . . . . . . . . . . . . Miscellaneous . | . . . . . . . . . . . . . . . . . . . . . Route ------- -11/Scrapyard -10/Materials (discovered 4 exits: *Mat x3 / [*Min]) -10/Mines (discovered 2 exits: *Mat x2) -9/Materials (discovered 2 exits: *Mat / *Min) -9/Mines (discovered 2 exits: *Mat / *Exi) -9/Exiles -8/Mines -8/Materials -8/Storage -7/Factory -7/Garrison -7/Factory -7/Lower Caves -7/Lower Caves -6/Factory -6/Lower Caves -6/Lower Caves -5/Factory -4/Factory -3/Research -2/Research History --------- Turn | Location | Event 1 | -11/Scrapyard | Discovered new exit (range 1) 3 | -11/Scrapyard | Entered Materials 279 | -10/Materials | Discovered new exit (range 7) 311 | -10/Materials | Build established: Mutant 311 | -10/Materials | Discovered new exit (range 16) 817 | -10/Materials | Discovered new exit (range 16) 948 | -10/Materials | Discovered new exit (range 4) 1104 | -10/Materials | Central database locked down 1367 | -10/Materials | Entered Mines 1381 | -10/Mines | Met a Derelict bent on vengeance 1599 | -10/Mines | Discovered new exit (range 12) 1689 | -10/Mines | Discovered new exit (range 9) 1697 | -10/Mines | Learned 2 Materials zone layouts 2274 | -10/Mines | Entered Materials 2274 | -9/Materials | Evolved 2 slots: Propulsion x1, Utility x1 2275 | -9/Materials | Identified exit to Mines 2718 | -9/Materials | Discovered new exit (range 16) 3263 | -9/Materials | Build established: Hauler-Mutant 3362 | -9/Materials | Entered Mines 3514 | -9/Mines | Discovered new exit (range 5) 3635 | -9/Mines | Assembled infested the area 3636 | -9/Mines | Learned Materials machine intel 3747 | -9/Mines | Learned location of Storage (-8) 3856 | -9/Mines | Received a Rocket Launcher from a helpful Derelict 3870 | -9/Mines | Discovered new exit (range 5) 3878 | -9/Mines | Entered Exiles 3912 | -9/Exiles | Met 8R-AWN 3951 | -9/Exiles | Met EX-HEX 4048 | -9/Exiles | Met EX-DEC 4082 | -9/Exiles | Visited The Gauntlet 4182 | -9/Exiles | Learned location of Zion (-6) 4217 | -9/Exiles | Met EX-BIN 4241 | -9/Exiles | Aligned with FarCom system 4243 | -9/Exiles | Given EX-Vault access code 4284 | -9/Exiles | Opened EX-Vault 4297 | -9/Exiles | Found Supersonic Drone Bay 4333 | -9/Exiles | Warned to stay clear of 0b10 Research branches 4545 | -9/Exiles | Discovered new exit (range 11) 4562 | -9/Exiles | Left Exiles lab with Supersonic Drone Bay 4562 | -9/Exiles | Entered Mines 4594 | -8/Mines | Core integrity fell below 50% 4612 | -8/Mines | Discovered new exit (range 7) 4693 | -8/Mines | Entered Materials 4693 | -8/Materials | Evolved 2 slots: Utility x1, Weapon x1 4694 | -8/Materials | Loaded intel: 60 machine locations 4958 | -8/Materials | Discovered new exit (range 3) 5242 | -8/Materials | Build established: Hauler-Skirmisher 5430 | -8/Materials | Identified exit to Storage 5821 | -8/Materials | Entered Storage 6069 | -8/Storage | Learned location of Armory (-4) 6310 | -8/Storage | Repaired Lgt. Treads 7576 | -8/Storage | Discovered new exit (range 16) 7819 | -8/Storage | Entered Factory 7819 | -7/Factory | Evolved 2 slots: Propulsion x1, Utility x1 9249 | -7/Factory | Build established: Hauler-Mutant 9564 | -7/Factory | Build established: Hauler-Skirmisher 9807 | -7/Factory | Identified exit to Garrison 9808 | -7/Factory | Entered Garrison 9846 | -7/Garrison | Triggered checkpoint 10033 | -7/Garrison | Triggered checkpoint 10042 | -7/Garrison | Triggered checkpoint 10094 | -7/Garrison | Destroyed 7 combat bots 10434 | -7/Garrison | Discovered new exit (range 9) 10463 | -7/Garrison | Installed Relay Interface Framework 10471 | -7/Garrison | Entered Factory 12044 | -7/Factory | Discovered new exit (range 11) 12062 | -7/Factory | Entered Lower Caves 12070 | -7/Lower Caves | Arm. Treads stolen by Master Thief 12119 | -7/Lower Caves | Build established: Hauler-Tank 12451 | -7/Lower Caves | Encountered a Warlord checkpoint 12822 | -7/Lower Caves | Discovered new exit (range 8) 12838 | -7/Lower Caves | Entered another Lower Caves area 13049 | -7/Lower Caves | Discovered new exit (range 15) 13088 | -7/Lower Caves | Entered Factory 13088 | -6/Factory | Evolved 2 slots: Propulsion x1, Utility x1 13691 | -6/Factory | Build established: Hauler-Mutant 13974 | -6/Factory | Discovered new exit (range 3) 13980 | -6/Factory | Entered Lower Caves 14139 | -6/Lower Caves | Spotted B-75 Beast 14144 | -6/Lower Caves | Encountered a Warlord checkpoint 14329 | -6/Lower Caves | Discovered new exit (range 7) 14332 | -6/Lower Caves | Entered another Lower Caves area 14333 | -6/Lower Caves | Discovered new exit (range 3) 14443 | -6/Lower Caves | Entered Factory 14443 | -5/Factory | Evolved 2 slots: Power x1, Utility x1 14601 | -5/Factory | Discovered new exit (range 8) 14602 | -5/Factory | Identified exit to Factory 14603 | -5/Factory | Entered another Factory area 14603 | -4/Factory | Evolved 2 slots: Propulsion x1, Utility x1 14643 | -4/Factory | Build established: Hacker-Sprinter 14982 | -4/Factory | Discovered new exit (range 12) 14993 | -4/Factory | Identified exit to Research 14994 | -4/Factory | Entered Research 14994 | -3/Research | Evolved 2 slots: Utility x1, Weapon x1 15082 | -3/Research | Lost 12 parts (2p6n4w) 15136 | -3/Research | Core integrity fell below 50% 15144 | -3/Research | Lost 3 parts (1n1u1w) 15334 | -3/Research | Build established: Hacker-Mutant 15368 | -3/Research | Discovered new exit (range 11) 15373 | -3/Research | Identified exit to Research 15373 | -3/Research | Entered another Research area 15373 | -2/Research | Evolved 2 slots: Utility x2 15433 | -2/Research | Core integrity fell below 50% 15458 | -2/Research | Core integrity fell below 20% 15470 | -2/Research | Destroyed by S-43 Plague with Heavy Machine Gun Last Messages --------------- 15432_ Slammed into U-05 Engineer. 15435_ System Shield destroyed. 15437_ Slammed into K-01 Serf. 15438_ Slammed into T-07 Excavator. 15443_ Slammed into Y-72 Warden. 15443_ Hacking Suite destroyed. 15455_ Acquired Hvy. Neutron Cannon. 15458_ S-43 Plague suffers critical hit. 15458_ Xenon Bombardment Thruster melted. 15458_ S-43 Plague destroyed. 15462_ Hvy. Neutron Cannon destroyed. 15465_ O-16 Technician: "IFF HANDSHAKE FAILED. SECURING TERMINAL." 15465_ Connecting with Terminal... >>Trojan(Detonate) Trojan loaded successfully. Testing... Scanning machine control network... No applicable machines found. Infected machine control systems. 15467_ Slammed into O-16 Technician. Map ----- +----------------------------------------------------+ | ??????????+ / """ """ # | | ??????????# #### """ """ + [ | | ??????????# #??#= """ """ # %= | | ??????????# #??# """ """ # | | ?????#######+###### # ###+###### | | ?????# ! # # # #????? | | ?????# # # # #????? | | ?????# # # # #????? | | ?????# ############## # #????? | | ?????# / + #????? | | ?????# = ############## # #????? | | ?????# #????????????###### #????? | | ?????# ####??????????????# #????? | | ?????# ## ###????????????# #????? | | ?????# # #????????????# #????? | | ?????# # #####????????# * #????? | | ?????# # # #????????#########????? | | ?????######## ##### s T #?????????????????????? | | ????????????# #???# # #?????????????????????? | | ????????????# #???# ## ##?????????????????????? | | ????????????# ##### !]=##s#??????????????????????? | | ????????????# Yss+s!==##s#??????????????????????? | | ????????????####### !]=##s#??????????????????????? | | ??????????????????####### #??????????????????????? | | ????????????????????????# #??????????????????????? | | ????????????????????????#@#??????????????????????? | | ????????????????????????# #??????????????????????? | | ????????????????????????#o#??????????????????????? | | ????????????????????????#YR??????????????????????? | | ????????????????????????+ ??????????????????????? | | ????????????????????????# ??????????????????????? | | ????????????????????????# ??????????????????????? | | ????????????????????????####?????????????????????? | | ?????????????????????????????????????????????????? | | ?????????????????????????????????w???????????????? | | ?????????????????????????????????????????????????? | | ?????????????????????????????????????????????????? | | ?????????????????????????????????????????????????? | | ?????????????????????????????????????????????????? | | ?????????????????????????????????????????????????? | | ???????????????????????????????????BB????????????? | | ?????????????????????????????????ssBB????????????? | | ????????????????????????????????s????????????????? | | ?????????????????????????????????????????????????? | | ?????????????????????????????????????????????????? | | ?????????????????????????????????????????????????? | | ?????????????????????????????????????????????????? | | ?????????????????????????????????????????????????? | | ?????????????????????????????????????????????????? | | ?????????????????????????????????????????????????? | +----------------------------------------------------+ Best States ------------- Heat Dissipation 49 Energy Generation 30 Energy Capacity 370 Matter Stores 300 Matter Capacity 300 Sight Range 16 Terrain Scan Range 20 Terrain Scan Density 10 Armor Coverage 225 Propulsion Shielding 33 Weapon Shielding 66 Melee Speed Boost 20 Evasion (%) 64 Targeting Accuracy 8 Recoil Reduction 4 Offensive Hacking 10 Defensive Hacking 20 Item Schematics ----------------- Cld. Ion Engine | -8/Materials | Scanalyzed System Shield | -8/Materials | Scanalyzed Great Axe | -7/Factory | Hacked Hcp. Storage Unit | -4/Factory | Scanalyzed Hrd. Light Armor Plating | -4/Factory | Scanalyzed Power Sword | -4/Factory | Scanalyzed Adv. Weight Redist. System | -4/Factory | Scanalyzed Hvy. Rocket Launcher | -4/Factory | Scanalyzed Nuclear Pulse Thruster | -4/Factory | Scanalyzed Robot Schematics ------------------ None Fabricated ------------ Nothing Alien Tech Used ----------------- None Achievements -------------- Gun Specialist Challenges ------------ None Game ------ Seed SigixCompositeSystem Manual? 0 Play Time 01:43:49 Cumulative 62.2 hours Start 2020.10.18 @ 04:36:40 End 2020.10.18 @ 18:49:05 Sessions 3 Manual Loads 0 Difficulty Rogue Special Mode None Game No. 55 Rogue 55 Adventurer 0 Explorer 0 Win Type - Total 0 Types 0/0/0/0/0/0/0/0/0 Lore% 39 Gallery% 45 Achievement% 37 Wizard Run 0 Options --------- ASCII 1 Keyboard 1 Movement Arrows Keybinds 0 Fullscreen 1 Font 24/Proggy Map View 76x50 Tactical HUD 1 Map Filters NONE Filters NONE Steam 1 RUN: f708d7f2-ca7d-48dd-8e1f-bdce254d2729